Workbook

Sheet teh (hidden)
A1: 1.728 | B1: 2.016 | C1: 2.304 | D1: 2.592 | E1: 2.88 | G1: =IF(A2,A1,0) -> 1.728 | H1: =IF(B2,B1,0) -> 0 | I1: 0 | J1: 0 | K1: 0 | L1: =G1+H1+I1+J1+K1 -> 1.728
A2: TRUE | B2: FALSE | C2: FALSE | D2: FALSE | E2: FALSE | G2: =IF(A2,Вагонка!H7,0) -> 1019.52 | H2: =IF(B2,Вагонка!I7,0) -> 0 | I2: =IF(C2,Вагонка!J7,0) -> 0 | J2: =IF(D2,Вагонка!K7,0) -> 0 | K2: =IF(E2,Вагонка!L7,0) -> 0 | L2: =SUM(G2:K2) -> 1019.52
A3: 1.728 | B3: 2.016 | C3: 2.304 | D3: 2.592 | E3: 2.88 | G3: =IF(A4,A3,0) -> 1.728 | H3: =IF(B4,B3,0) -> 0 | I3: 0 | J3: 0 | K3: 0 | L3: =G3+H3+I3+J3+K3 -> 1.728
A4: TRUE | B4: FALSE | C4: FALSE | D4: FALSE | E4: FALSE | G4: =IF(A4,Вагонка!H8,0) -> 432 | H4: =IF(B4,Вагонка!I8,0) -> 0 | I4: =IF(C4,Вагонка!J8,0) -> 0 | J4: =IF(D4,Вагонка!K8,0) -> 0 | K4: =IF(E4,Вагонка!L8,0) -> 0 | L4: =SUM(G4:K4) -> 432
A5: 1.728 | B5: 2.016 | C5: 2.304 | D5: 2.592 | E5: 2.88 | G5: =IF(A6,A5,0) -> 1.728 | H5: =IF(B6,B5,0) -> 0 | I5: 0 | J5: 0 | K5: 0 | L5: =G5+H5+I5+J5+K5 -> 1.728
A6: TRUE | B6: FALSE | C6: FALSE | D6: FALSE | E6: FALSE | G6: =IF(A6,Вагонка!H9,0) -> 345.6 | H6: =IF(B6,Вагонка!I9,0) -> 0 | I6: =IF(C6,Вагонка!J9,0) -> 0 | J6: =IF(D6,Вагонка!K9,0) -> 0 | K6: =IF(E6,Вагонка!L9,0) -> 0 | L6: =SUM(G6:K6) -> 345.6
A7: 1.728 | B7: 2.016 | C7: 2.304 | D7: 2.592 | E7: 2.88 | G7: =IF(A8,A7,0) -> 1.728 | H7: =IF(B8,B7,0) -> 0 | I7: 0 | J7: 0 | K7: 0 | L7: =G7+H7+I7+J7+K7 -> 1.728
A8: TRUE | B8: FALSE | C8: FALSE | D8: FALSE | E8: FALSE | G8: =IF(A8,Вагонка!H10,0) -> 345.6 | H8: =IF(B8,Вагонка!I10,0) -> 0 | I8: =IF(C8,Вагонка!J10,0) -> 0 | J8: =IF(D8,Вагонка!K10,0) -> 0 | K8: =IF(E8,Вагонка!L10,0) -> 0 | L8: =SUM(G8:K8) -> 345.6
A9: 1.728 | B9: 2.016 | C9: 2.304 | D9: 2.592 | E9: 2.88 | G9: =IF(A10,A9,0) -> 1.728 | H9: =IF(B10,B9,0) -> 0 | I9: 0 | J9: 0 | K9: 0 | L9: =G9+H9+I9+J9+K9 -> 1.728
A10: TRUE | B10: FALSE | C10: FALSE | D10: FALSE | E10: FALSE | G10: =IF(A10,Вагонка!H11,0) -> 518.4 | H10: =IF(B10,Вагонка!I11,0) -> 0 | I10: =IF(C10,Вагонка!J11,0) -> 0 | J10: =IF(D10,Вагонка!K11,0) -> 0 | K10: =IF(E10,Вагонка!L11,0) -> 0 | L10: =SUM(G10:K10) -> 518.4
A11: 1.728 | B11: 2.016 | C11: 2.304 | D11: 2.592 | E11: 2.88 | G11: =IF(A12,A11,0) -> 1.728 | H11: =IF(B12,B11,0) -> 0 | I11: 0 | J11: 0 | K11: 0 | L11: =G11+H11+I11+J11+K11 -> 1.728
A12: TRUE | B12: FALSE | C12: FALSE | D12: FALSE | E12: FALSE | G12: =IF(A12,Вагонка!H12,0) -> 864 | H12: =IF(B12,Вагонка!I12,0) -> 0 | I12: =IF(C12,Вагонка!J12,0) -> 0 | J12: =IF(D12,Вагонка!K12,0) -> 0 | K12: =IF(E12,Вагонка!L12,0) -> 0 | L12: =SUM(G12:K12) -> 864
A13: 1.728 | B13: 2.016 | C13: 2.304 | D13: 2.592 | E13: 2.88 | G13: =IF(A14,A13,0) -> 1.728 | H13: =IF(B14,B13,0) -> 0 | I13: 0 | J13: 0 | K13: 0 | L13: =G13+H13+I13+J13+K13 -> 1.728
A14: TRUE | B14: FALSE | C14: FALSE | D14: FALSE | E14: FALSE | G14: =IF(A14,Вагонка!H13,0) -> 604.8 | H14: =IF(B14,Вагонка!I13,0) -> 0 | I14: =IF(C14,Вагонка!J13,0) -> 0 | J14: =IF(D14,Вагонка!K13,0) -> 0 | K14: =IF(E14,Вагонка!L13,0) -> 0 | L14: =SUM(G14:K14) -> 604.8
A15: 1.728 | B15: 2.016 | C15: 2.304 | D15: 2.592 | E15: 2.88 | G15: =IF(A16,A15,0) -> 1.728 | H15: =IF(B16,B15,0) -> 0 | I15: 0 | J15: 0 | K15: 0 | L15: =G15+H15+I15+J15+K15 -> 1.728
A16: TRUE | B16: FALSE | C16: FALSE | D16: FALSE | E16: FALSE | G16: =IF(A16,Вагонка!H14,0) -> 1382.4 | H16: =IF(B16,Вагонка!I14,0) -> 0 | I16: =IF(C16,Вагонка!J14,0) -> 0 | J16: =IF(D16,Вагонка!K14,0) -> 0 | K16: =IF(E16,Вагонка!L14,0) -> 0 | L16: =SUM(G16:K16) -> 1382.4
A17: 1.728 | B17: 2.016 | C17: 2.304 | D17: 2.592 | E17: 2.88 | G17: =IF(A18,A17,0) -> 1.728 | H17: =IF(B18,B17,0) -> 0 | I17: 0 | J17: 0 | K17: 0 | L17: =G17+H17+I17+J17+K17 -> 1.728
A18: TRUE | B18: FALSE | C18: FALSE | D18: FALSE | E18: FALSE | G18: =IF(A18,Вагонка!H15,0) -> 1036.8 | H18: =IF(B18,Вагонка!I15,0) -> 0 | I18: =IF(C18,Вагонка!J15,0) -> 0 | J18: =IF(D18,Вагонка!K15,0) -> 0 | K18: =IF(E18,Вагонка!L15,0) -> 0 | L18: =SUM(G18:K18) -> 1036.8
A19: 1.728 | B19: 2.016 | C19: 2.304 | D19: 2.592 | E19: 2.88 | G19: =IF(A20,A19,0) -> 1.728 | H19: =IF(B20,B19,0) -> 0 | I19: 0 | J19: 0 | K19: 0 | L19: =G19+H19+I19+J19+K19 -> 1.728
A20: TRUE | B20: FALSE | C20: FALSE | D20: FALSE | E20: FALSE | G20: =IF(A20,Вагонка!H16,0) -> 432 | H20: =IF(B20,Вагонка!I16,0) -> 0 | I20: =IF(C20,Вагонка!J16,0) -> 0 | J20: =IF(D20,Вагонка!K16,0) -> 0 | K20: =IF(E20,Вагонка!L16,0) -> 0 | L20: =SUM(G20:K20) -> 432

Sheet Содержание
B1: ВАЖНО!!! Для работы прайса необходимо ВКЛЮЧИТЬ СОДЕРЖИМОЕ СТРАНИЦЫ
B3: Далее Вы выбираете интересующий Вас раздел(лист) и вводите необходимое кол-во нужного Вам товара
B4: После этого переходите на "главную страницу(Содержание)" и оформляете заказ. После нажатия кнопки
B5: "ОФОРМИТЬ ЗАКАЗ" удаляются пустые строки и вкладки(листы). Далее Вы сохраняете этот файл и отправляете его нам
B6: на почту | C6: info@strmirnn.ru
G8: ООО " СТРОЙМИР-НН"
G9: 603057, г.Нижний Новгород, ул.Краснозвездная, д.17,оф.8
G10: тел.(831) 413-57-60, 413-57-61, 282-05-53
G11: e-mail: info@strmirnn.ru | J11: сайт: | K11: www.strmirnn.ru
D14: Общие разделы прайс-листа
A15: 1 | B15: Содержание
A16: 2 | B16: Доска, брус
A17: 3 | B17: Доска сухая строганная
A18: 4 | B18: Имитация бруса/сруба, доска пола шпунтованная
A19: 5 | B19: Вагонка
A20: 6 | B20: Погонаж
A21: 7 | B21: ОSB-3 (Ориентировано-стружечные плиты) | J21: Сумма заказа | K21: ='Доска Брус'!K43+'Доска строг'!F25+'Раублок-хаус, Шпунт'!L25+Вагонка!O17+Погонаж!J20+OSB!H13+Фанера!G45+'ЦСП ГСП'!F24+'ГКЛ ПГП'!G17+'ДВП ДСП'!F9+'Утеп-ли'!I39+Пароизол!H12+Крепеж!K42+Лаки!G13+Огнебио!G39+'Грунт для OSB '!G11+Грунты!G17+Напл.мат!J11+Цемент!K8+Черенки!K12+Перчатки!I23 -> 0
A22: 8 | B22: Фанера
A23: 9 | B23: ЦСП, ГСП (Цементно/гипсостружечные плиты)
A24: 10 | B24: ГКЛ, ПГП (Гипсокартон, пазогребневые плиты)
A25: 11 | B25: ДВП, ДСП
A26: 12 | B26: Утеплители, пенопласт, фольга
A27: 13 | B27: Пароизоляционные материалы
A28: 14 | B28: Крепеж
A29: 15 | B29: Лаки, краски для дерева
A30: 16 | B30: Огнебиозащита, антисептики
A31: 17 | B31: Грунт для OSB-3. НОВИНКА!!!
A32: 18 | B32: Грунты глубокого проникновения
A33: 19 | B33: Наплавляемые кровельные материалы
A34: 20 | B34: Цемент
A35: 21 | B35: Черенки
A36: 22 | B36: Перчатки, мешки для мусора

Sheet Доска Брус
K1: на главную страницу
A2: ПИЛОМАТЕРИАЛ ЕСТЕСТВЕННОЙ ВЛАЖНОСТИ
A4: № | B4: Наименование | C4: Кол-во досок в м3 | D4: Объем одной доски м3 | E4: Цена за м3, руб | F4: Цена за шт, руб | G4: Кол-во заказа в шт | H4: Сумма, руб/шт | I4: Кол-во заказа в м3 | J4: Цена за м3, руб | K4: Сумма, руб/м3
G5: Напишите кол-во заказа в шт | I5: Напишите кол-во заказа в м3
A6: Доска обрезная 1 сорт | G6: - | I6: -
A7: 1 | B7: Доска обрезная 25*100*3000 1 сорт | C7: 133.3 | D7: 0.0075 | E7: 6500 | F7: 45 | H7: =F7*G7 -> 0 | J7: 5700 | K7: =I7*J7 -> 0
A8: 2 | B8: Доска обрезная 25*100*6000 1 сорт | C8: 66.6 | D8: 0.015 | E8: 6500 | F8: 95 | H8: =F8*G8 -> 0 | J8: 6200 | K8: =E8*I8 -> 0
A9: 3 | B9: Доска обрезная 25*130*6000 1 сорт | C9: 51.3 | D9: 0.019 | E9: 6500 | F9: 120 | H9: 0 | J9: 6200 | K9: 0
A10: 4 | B10: Доска обрезная 25*150*6000 1 сорт | C10: 44.4 | D10: 0.022 | E10: 6500 | F10: =E10*D10 -> 143 | H10: 0 | J10: 6300 | K10: 0
A11: 5 | B11: Доска обрезная 25*200*6000 1 сорт | C11: 33.3 | D11: 0.03 | E11: 6500 | F11: =E11*D11 -> 195 | H11: 0 | J11: 6300 | K11: 0
A12: 6 | B12: Доска обрезная 40*100*6000 1сорт | C12: 41.6 | D12: 0.024 | E12: 6500 | F12: 156 | H12: 0 | J12: 6200 | K12: 0
A13: 7 | B13: Доска обрезная 40*150*6000 1 сорт | C13: 27.7 | D13: 0.036 | E13: 6500 | F13: 234 | H13: 0 | J13: 6200 | K13: 0
A14: 8 | B14: Доска обрезная 40*200*6000 1 сорт | C14: 20.8 | D14: 0.048 | E14: 6500 | F14: 312 | H14: 0 | J14: 6300 | K14: 0
A15: 9 | B15: Доска 50*100*6000 1 сорт | C15: 33.3 | D15: 0.03 | E15: 6500 | F15: 195 | H15: 0 | J15: 6200 | K15: 0
A16: 10 | B16: Доска 50*150*6000 1 сорт | C16: 22.2 | D16: 0.045 | E16: 6500 | F16: 292.5 | H16: 0 | J16: 6200 | K16: 0
A17: 11 | B17: Доска 50*200*6000 1 сорт | C17: 16.6 | D17: 0.06 | E17: 6500 | F17: 390 | H17: 0 | J17: 6300 | K17: 0
A18: 12 | B18: Доска 50*250*6000 1 сорт | C18: 13.3 | D18: 0.075 | E18: 6900 | F18: 517.5 | H18: 0 | J18: 6900 | K18: 0
A19: Доска обрезная 2 сорт | G19: - | I19: -
A20: 13 | B20: Доска обрезная 25*100*3000 2 сорт | C20: 133 | D20: 0.0075 | E20: 3900 | F20: =D20*E20 -> 29.25 | H20: =F20*G20 -> 0 | J20: 3500 | K20: =I20*J20 -> 0
A21: 14 | B21: Доска обрезная 25*100*6000 2 сорт | C21: 66.6 | D21: 0.015 | E21: 4500 | F21: =D21*E21 -> 67.5 | H21: =F21*G21 -> 0 | J21: 3900 | K21: =I21*J21 -> 0
A22: 15 | B22: Доска обрезная 25*130*6000 2 сорт | C22: 51.3 | D22: 0.019 | E22: 4500 | F22: 85.5 | H22: 0 | J22: 4000 | K22: 0
A23: 16 | B23: Доска обрезная 25*150*6000 2 сорт | C23: 44.4 | D23: 0.022 | E23: 4500 | F23: 99 | H23: 0 | J23: 4000 | K23: 0
A24: 17 | B24: Доска обрезная 25*200*6000 2 сорт | C24: 33.3 | D24: 0.03 | E24: 4500 | F24: 135 | H24: 0 | J24: 4000 | K24: 0
A25: 18 | B25: Доска обрезная 40*100*6000 2 сорт | C25: 41.6 | D25: 0.024 | E25: 5300 | F25: 127.2 | H25: 0 | J25: 5200 | K25: 0
A26: 19 | B26: Доска обрезная 40*150*6000 2 сорт | C26: 27.7 | D26: 0.036 | E26: 5300 | F26: 190.8 | H26: 0 | J26: 5200 | K26: =I26*J26 -> 0
A27: 20 | B27: Доска обрезная 40*200*6000 2 сорт | C27: 20.8 | D27: 0.048 | E27: 5300 | F27: 254.4 | H27: 0 | J27: 5200 | K27: 0
A28: 21 | B28: Доска обрезная 50*100*6000 2 сорт | C28: 33.3 | D28: 0.03 | E28: 5300 | F28: 159 | H28: 0 | J28: 5200 | K28: 0
A29: 22 | B29: Доска обрезная 50*150*6000 2 сорт | C29: 22.2 | D29: 0.045 | E29: 5300 | F29: 238.5 | H29: 0 | J29: 5200 | K29: 0
A30: 23 | B30: Доска обрезная 50*200*6000 2 сорт | C30: 16.6 | D30: 0.06 | E30: 5300 | F30: 318 | H30: 0 | J30: 5200 | K30: 0
A31: Брус | G31: - | I31: -
A32: 24 | B32: Брус 100*100*6000 | C32: 16.6 | D32: 0.06 | E32: 6500 | F32: =D32*E32 -> 390 | H32: =F32*G32 -> 0 | J32: 6200 | K32: =I32*J32 -> 0
A33: 25 | B33: Брус 100*150*6000 | C33: 11.1 | D33: 0.09 | E33: 6500 | F33: =D33*E33 -> 585 | H33: =F33*G33 -> 0 | J33: 6200 | K33: =I33*J33 -> 0
A34: 26 | B34: Брус 150*150*6000 | C34: 7.4 | D34: 0.135 | E34: 6500 | F34: 877.5 | H34: 0 | J34: 6200 | K34: 0
A35: 27 | B35: Брус 100*200*6000 | C35: 8.3 | D35: 0.12 | E35: 6500 | F35: 780 | H35: 0 | J35: 6300 | K35: 0
A36: 28 | B36: Брус 150*200*6000 | C36: 5.5 | D36: 0.18 | E36: 6700 | F36: 1206 | H36: 0 | J36: 6300 | K36: 0
A37: 29 | B37: Брус 200*200*6000 | C37: 4.1 | D37: 0.24 | E37: 6700 | F37: 1608 | H37: 0 | J37: 6300 | K37: 0
A38: Доска необрезная | G38: - | I38: -
A39: 30 | B39: Доска необрезная 25*6000 | E39: 3500 | F39: 100 | H39: =F39*G39 -> 0 | J39: 2900 | K39: =I39*J39 -> 0
A40: 31 | B40: Доска необрезная 40*6000 | E40: 6000 | F40: 350 | H40: =F40*G40 -> 0 | J40: 5900 | K40: =I40*J40 -> 0
A41: 32 | B41: Доска необрезная 50*6000 | E41: 6000 | F41: 450 | H41: 0 | J41: 5900 | K41: 0
G42: Общая сумма | H42: =SUM(H7:H41) -> 0 | I42: Общая сумма | K42: =SUM(K7:K41) -> 0
G43: - | I43: ИТОГО СУММА | K43: =H42+K42 -> 0

Sheet Доска строг
A1: ДОСКА СУХАЯ СТРОГАННАЯ | F1: на главную страницу
A2: № | B2: Наименование | C2: Кол-во досок в м3 | D2: Цена, руб/шт | E2: Кол-во заказа, шт | F2: Сумма, руб | G2: Объем заказа, м3 | H2: Цена за м3, руб | I2: Сумма, руб/м3
E3: Напишите кол-во заказа в шт | G3: Напишите кол-во заказа в м3
A4: 1 | B4: Доска сухая строганная 20*120*6000 | C4: =1/0.018/0.12/6 -> 77.16049383 | D4: 230 | F4: =D4*E4 -> 0
A5: 2 | B5: Доска сухая строганная 20*90*3000 | C5: =1/0.02/0.1/3 -> 166.6666667 | D5: 90 | F5: 0
A6: 3 | B6: Доска сухая строганная 20*90*6000 | C6: =1/0.02/0.1/6 -> 83.33333333 | D6: 180 | F6: 0
A7: 4 | B7: Доска сухая строганная 20*140*6000 | C7: =1/0.02/0.14/6 -> 59.52380952 | D7: 300 | F7: 0
A8: 5 | B8: Доска сухая строганная 25*125*6000 | C8: =1/0.025/0.125/6 -> 53.33333333 | D8: 300 | F8: 0
A9: 6 | B9: Доска сухая строганная 35*140*6000 | C9: =1/0.035/0.14/6 -> 34.01360544 | D9: 450 | F9: 0
A10: 7 | B10: Доска сухая строганная 35*190*6000 | C10: =1/0.035/0.19/6 -> 25.06265664 | D10: 550 | F10: 0
A11: 8 | B11: Доска сухая строганная 43*90*6000 | C11: =1/0.043/0.09/6 -> 43.06632214 | D11: 350 | F11: 0
A12: 9 | B12: Доска сухая строганная 43*140*6000 | C12: =1/0.043/0.14/6 -> 27.6854928 | D12: 500 | F12: 0
A13: 10 | B13: Доска сухая строганная 43*190*6000 | C13: =1/0.043/0.19/6 -> 20.3998368 | D13: 700 | F13: 0
A14: 11 | B14: Доска сухая 25*100*6000 | C14: 66.66 | D14: 150 | F14: 0
A15: 12 | B15: Доска сухая 25*150*6000 | C15: 44.44 | D15: 230 | F15: 0
A16: 13 | B16: Доска сухая 40*150*6000 | C16: 27.77 | D16: 350 | F16: =D16*E16 -> 0 | H16: =#REF! ->  | I16: =G16*H16 -> 
A17: 14 | B17: Доска сухая 50*150*6000 | C17: 22.22 | D17: 430 | F17: 0
A18: 15 | B18: Доска сухая 50*200*6000 | C18: 16.66 | D18: 570 | F18: 0
A19: Брусок сухой строганный | E19: -
A20: 16 | B20: Брусок 20*40*3000 | C20: =1/0.02/0.04/3 -> 416.6666667 | D20: 50 | F20: =D20*E20 -> 0
A21: 17 | B21: Брусок 40*40*3000 | C21: =1/0.04/0.04/3 -> 208.3333333 | D21: 90 | F21: =D21*E21 -> 0
A22: 18 | B22: Брусок 40*50*3000 | C22: =1/0.04/0.05/3 -> 166.6666667 | D22: 110 | F22: 0
A23: 19 | B23: Брусок 50*50*3000 | C23: =1/0.05/0.05/3 -> 133.3333333 | D23: 130 | F23: 0
A24: 20 | B24: Брусок 50*70*3000 | C24: =1/0.05/0.07/3 -> 95.23809524 | D24: 170 | F24: 0
E25: Общая сумма | F25: =SUM(F4:F24) -> 0

Sheet Раублок-хаус, Шпунт
A2: ИМИТАЦИЯ БРУСА/СРУБА | K2: на главную страницу
A3: ДОСКА ПОЛА ШПУНТОВАННАЯ
A4: № | B4: Наименование | E4: Цена за м2, руб | F4: Кол-во заказа, м2 | G4: Сумма, руб | H4: Упаковка | J4: Цена за упаковку, руб | K4: Кол-во заказа, упак. | L4: Сумма, руб
F5: написать кол-во м2 | H5: шт | I5: м2 | K5: написать кол-во упак.
A6: Имитация бруса (рау-хаус) сорт АВ | F6: - | K6: -
A7: 1 | B7: Рау-хаус 16*135*3000 | E7: 300 | G7: =E7*F7 -> 0 | H7: 7 | I7: =H7*0.135*3 -> 2.835 | J7: =E7*I7 -> 850.5 | L7: =J7*K7 -> 0
A8: =1+A7 -> 2 | B8: Рау-хаус 16*135*5000 | E8: 300 | G8: =E8*F8 -> 0 | H8: 7 | I8: =H8*0.135*5 -> 4.725 | J8: =E8*I8 -> 1417.5 | L8: =J8*K8 -> 0
A9: 3 | B9: Рау-хаус 16*135*6000 | E9: 300 | G9: 0 | H9: 7 | I9: =H9*0.135*6 -> 5.67 | J9: 1701 | L9: 0
A10: 4 | B10: Рау-хаус 18*146*5000 | E10: 300 | G10: 0 | H10: 7 | I10: =H10*0.146*5 -> 5.11 | J10: 1533 | L10: 0
A11: 5 | B11: Рау-хаус 18*146*6000 | E11: 300 | G11: 0 | H11: 7 | I11: =H11*0.146*6 -> 6.132 | J11: 1839.6 | L11: 0
A12: 6 | B12: Рау-хаус 21*185*3000 | E12: 350 | G12: =E12*F12 -> 0 | H12: 5 | I12: =H12*0.185*3 -> 2.775 | J12: 971.25 | L12: 0
A13: 7 | B13: Рау-хаус 21*185*5000 | E13: 350 | G13: 0 | H13: 5 | I13: =H13*0.185*5 -> 4.625 | J13: 1618.75 | L13: 0
A14: 8 | B14: Рау-хаус 21*185*6000 | E14: 350 | G14: 0 | H14: 5 | I14: =H14*0.185*6 -> 5.55 | J14: 1942.5 | L14: 0
A15: Имитация сруба (блок-хаус) сорт АВ | F15: - | K15: -
A16: 9 | B16: Блок-хаус 28*135*6000 | C16: 36*185*6000 | D16: АВ | E16: 410 | G16: =E16*F16 -> 0 | H16: 2 | I16: =0.135*6*H16 -> 1.62 | J16: 664.2 | L16: =J16*K16 -> 0
A17: 10 | B17: Блок-хаус 36*185*6000 | C17: 36*185*6000 | D17: АВ | E17: 530 | G17: 0 | H17: 2 | I17: =H17*0.185*6 -> 2.22 | J17: 1176.6 | L17: =J17*K17 -> 0
A18: 11 | B18: Блок-хаус 44*185*6000 | C18: 44*185*6000 | D18: АВ | E18: 590 | G18: =E18*F18 -> 0 | H18: 2 | I18: =H18*0.185*6 -> 2.22 | J18: =E18*I18 -> 1309.8 | L18: 0
A19: Доска пола шпунтованная, сорт АВ | F19: - | K19: -
A20: 12 | B20: Доска пола 27*130*6000 | C20: 27*130*6000 | D20: АВ | E20: 390 | G20: 0 | H20: 1 | I20: =H20*0.13*6 -> 0.78 | J20: 304.2 | L20: =J20*K20 -> 0
A21: 13 | B21: Доска пола 36*130*6000 | C21: 36*130*6000 | D21: АВ | E21: 490 | G21: =E21*F21 -> 0 | H21: 1 | I21: =H21*0.13*6 -> 0.78 | J21: =E21*I21 -> 382.2 | L21: =J21*K21 -> 0
A22: 14 | B22: Доска пола 44*130*6000 | C22: 44*130*6000 | D22: АВ | E22: 590 | G22: 0 | H22: 1 | I22: =H22*0.13*6 -> 0.78 | J22: 460.2 | L22: 0
F23: Общая сумма | G23: =SUM(G7:G22) -> 0 | K23: Общая сумма | L23: =SUM(L7:L22) -> 0
F25: - | K25: ИТОГО СУММА | L25: =G23+L23 -> 0

Sheet Вагонка
N1: на главную страницу
A2: ЕВРОВАГОНКА ДОЗ "Архангельский"
A3: № | B3: Наименование | E3: Цена, руб/м2 | F3: Кол-во заказа, м2 | G3: Сумма, руб | H3: Цена за упаковку, руб | M3: Расчет кол-ва упак. | N3: Итоговое кол-во упак. | O3: Итоговая сумма с учетом кратности упаковок, руб
F4: ниже впишите кол-во м2 | G4: Длина | H4: 1,80 м | I4: 2,10 м | J4: 2,40 м | K4: 2,70 м | L4: 3,00 м
G5: Кол-во м2 в упак. (10 шт) | H5: 1.728 | I5: 2.016 | J5: 2.304 | K5: 2.592 | L5: 2.88
F6: - | H6: ВЫБЕРИТЕ НУЖНУЮ ДЛИНУ | M6: - | N6: -
A7: 1 | B7: Евровагонка (ель, сосна) 13мм*96мм без сучков, цельная Сорт Экстра | E7: 590 | G7: =E7*F7 -> 0 | H7: =1.728*E7 -> 1019.52 | I7: =2.016*E7 -> 1189.44 | J7: =2.304*E7 -> 1359.36 | K7: =2.592*E7 -> 1529.28 | L7: =2.88*E7 -> 1699.2 | M7: =F7/teh!L1 -> 0 | N7: =ROUNDUP(M7,0) -> 0 | O7: =N7*teh!L2 -> 0
A8: 2 | B8: Евровагонка (ель, сосна) 13мм*96мм сорт А | E8: 250 | G8: =E8*F8 -> 0 | H8: =1.728*E8 -> 432 | I8: =2.016*E8 -> 504 | J8: =2.304*E8 -> 576 | K8: =2.592*E8 -> 648 | L8: =2.88*E8 -> 720 | M8: =F8/teh!L3 -> 0 | N8: =ROUNDUP(M8,0) -> 0 | O8: =N8*teh!L4 -> 0
A9: 3 | B9: Евровагонка (ель, сосна) 13мм*96мм сорт В | E9: 200 | G9: 0 | H9: 345.6 | I9: 403.2 | J9: 460.8 | K9: 518.4 | L9: 576 | M9: =F9/teh!L5 -> 0 | N9: 0 | O9: =N9*teh!L6 -> 0
A10: 4 | B10: Евровагонка (ель, сосна) 13мм*96мм сорт С | E10: 200 | G10: 0 | H10: 345.6 | I10: 403.2 | J10: 460.8 | K10: 518.4 | L10: 576 | M10: =F10/teh!L7 -> 0 | N10: 0 | O10: =N10*teh!L8 -> 0
A11: 5 | B11: Евровагонка (лиственница) 13мм*96мм сорт АВ | E11: 300 | G11: 0 | H11: 518.4 | I11: 604.8 | J11: 691.2 | K11: 777.6 | L11: 864 | M11: =F11/teh!L9 -> 0 | N11: 0 | O11: =N11*teh!L10 -> 0
A12: 6 | B12: Евровагонка (осина) 13мм*96мм сорт Экстра/А | E12: 500 | G12: 0 | H12: 864 | I12: 1008 | J12: 1152 | K12: 1296 | L12: 1440 | M12: =F12/teh!L11 -> 0 | N12: 0 | O12: =N12*teh!L12 -> 0
A13: 7 | B13: Евровагонка (осина) 13мм*96мм Сорт В | E13: 350 | G13: 0 | H13: 604.8 | I13: 705.6 | J13: 806.4 | K13: 907.2 | L13: 1008 | M13: =F13/teh!L13 -> 0 | N13: 0 | O13: =N13*teh!L14 -> 0
A14: 8 | B14: Евровагонка (липа) 13мм*96мм Сорт Экстра/А | E14: 800 | G14: 0 | H14: 1382.4 | I14: 1612.8 | J14: 1843.2 | K14: 2073.6 | L14: 2304 | M14: =F14/teh!L15 -> 0 | N14: 0 | O14: =N14*teh!L16 -> 0
A15: 9 | B15: Евровагонка (липа) 13мм*96мм Сорт В | E15: 600 | G15: 0 | H15: 1036.8 | I15: 1209.6 | J15: 1382.4 | K15: 1555.2 | L15: 1728 | M15: =F15/teh!L17 -> 0 | N15: 0 | O15: =N15*teh!L18 -> 0
A16: 10 | B16: Евровагонка (липа) 13мм*96мм Сорт С | E16: 250 | G16: 0 | H16: 432 | I16: 504 | J16: 576 | K16: 648 | L16: 720 | M16: =F16/teh!L19 -> 0 | N16: 0 | O16: =N16*teh!L20 -> 0
F17: - | N17: Общая сумма | O17: =SUM(O6:O16) -> 0

Sheet Погонаж
A2: РЕЙКА, ПЛИНТУС, УГОЛОК, ОБКЛАДКА | J2: на главную страницу
A4: № | B4: Наименование | C4: Размеры, мм | D4: Ед. изм. | E4: Кол-во заказа, пог.м | F4: Цена, руб/пог.м | G4: Сумма, руб | H4: Кол-во заказа, в шт | I4: Цена, руб/шт | J4: Сумма, руб
E5: впишите кол-во заказа в пог м | H5: впишите кол-во заказа в шт
A6: 1 | B6: Рейка сращенная бессучковая (нащельник) экстра | C6: 8*30*2100 | D6: шт | F6: 24 | G6: =E6*F6 -> 0 | I6: 50 | J6: =I6*H6 -> 0
A7: 2 | B7: Плинтус сращенный бессучковый экстра | C7: 27*2500 | D7: шт | F7: 20 | G7: =E7*F7 -> 0 | I7: 50 | J7: =I7*H7 -> 0
A8: 3 | B8: Плинтус сращенный бессучковый экстра | C8: 45*2500 | D8: шт | F8: 24 | G8: 0 | I8: 60 | J8: 0
A9: 4 | B9: Плинтус сращенный бессучковый экстра | C9: 55*2500 | D9: шт | F9: 28 | G9: 0 | I9: 70 | J9: 0
A10: 5 | B10: Плинтус сращенный бессучковый (сапожок) экстра | C10: 65*2500 | D10: шт | F10: 24 | G10: 0 | I10: 60 | J10: 0
A11: 6 | B11: Плинтус сращенный бессучковый 2сорт | C11: 45*2500 | D11: шт | F11: 16 | G11: 0 | I11: 40 | J11: 0
A12: 7 | B12: Плинтус сращенный бессучковый 2сорт | C12: 55*2500 | D12: шт | F12: 16 | G12: 0 | I12: 40 | J12: 0
A13: 8 | B13: Плинтус сращенный бессучковый (сапожок) 2 сорт | C13: 65*2500 | D13: шт | F13: 16 | G13: 0 | I13: 40 | J13: 0
A14: 9 | B14: Уголок сращенный бессучковый | C14: 30*30*2500 | D14: шт | F14: 40 | G14: 0 | I14: 100 | J14: 0
A15: 10 | B15: Уголок сращенный бессучковый | C15: 40*40*2500 | D15: шт | F15: 52 | G15: 0 | I15: 130 | J15: 0
A16: 11 | B16: Обкладка сращенная бессучковая | C16: 10*65*2200 | D16: шт | F16: 32 | G16: 0 | I16: 70 | J16: 0
A17: 12 | B17: Обкладка сращенная бессучковая | C17: 10*90*2200 | D17: шт | F17: 50 | G17: 0 | I17: 110 | J17: 0
E18: Общая сумма | G18: =SUM(G5:G17) -> 0 | H18: Общая сумма | J18: =SUM(J5:J17) -> 0
E20: - | H20: ИТОГО СУММА | I20: =G18+J18 -> 0

Sheet OSB
A2: OSB-3 (ОСП - ОРИЕНТИРОВАНО-СТРУЖЕЧНЫЕ ПЛИТЫ) | F2: на главную страницу
A4: № | B4: Наименование | C4: Размер листа, мм | D4: Кол-во листов в пачке | E4: Площадь листа, м2 | F4: Цена за лист, руб | G4: Кол-во заказа | H4: Сумма, руб
G5: -
A6: 1 | B6: Плита ОSB-3 9мм Kалевала Россия ЭкоДом (без фармальдегида) Новинка!!! | C6: 2500 х 1250 х 9 | D6: 72 | E6: 3.125 | F6: 570 | H6: =F6*G6 -> 0
A7: 2 | B7: Плита ОSB-3 9мм Кronospan Белоруссия | C7: 2500 х 1250 х 9 | D7: 78 | E7: 3.125 | F7: 560 | H7: 0
A8: 3 | B8: Плита ОSB-3 12мм Kronospan Белоруссия | C8: 2500 х 1250 х 12 | D8: 60 | E8: 3.125 | F8: 720 | H8: 0
A9: 4 | B9: Плита OSB-3 12мм Kronospan Белоруссия | C9: 2500 х 1850 х 12 | D9: 60 | E9: 4.625 | F9: 810 | H9: 0
A10: 5 | B10: Плита ОSB-3 15мм Kronospan Белоруссия | C10: 2500 х 1250 х 15 | D10: 48 | E10: 3.125 | F10: 875 | H10: 0
A11: 6 | B11: Плита ОSB-3 18мм Kronospan Белоруссия | C11: 2500 х 1250 х 18 | D11: 39 | E11: 3.125 | F11: 1085 | H11: 0
A12: 7 | B12: Плита ОSB-3 22мм Kronospan Белоруссия | C12: 2500 х 1250 х 22 | D12: 32 | E12: 3.125 | F12: 1320 | H12: 0
G13: Общая сумма | H13: =SUM(H5:H12) -> 0

Sheet Фанера
G1: на главную страницу
A2: Фанера ФК, ФСФ, Ламинированная
A4: № | B4: Наименование | C4: Ед. изм. | D4: Цена за лист, руб | F4: Кол-во заказа | G4: Сумма, руб
A5: ФАНЕРА березовая марки ФК Сорт 3/4,4/4 ГОСТ 3916.1-96 | F5: -
A6: 1 | B6: Фанера 4мм*1,525*1,525 | C6: лист | D6: 200 | G6: =D6*F6 -> 0
A7: 2 | B7: Фанера 6мм*1,525*1,525 | C7: лист | D7: 285 | G7: 0
A8: 3 | B8: Фанера 8мм*1,525*1,525 | C8: лист | D8: 355 | G8: 0
A9: 4 | B9: Фанера 9мм*1,525*1,525 | C9: лист | D9: 395 | G9: 0
A10: 5 | B10: Фанера 10мм*1,525*1,525 | C10: лист | D10: 420 | G10: 0
A11: 6 | B11: Фанера 12мм*1,525*1,525 | C11: лист | D11: 500 | G11: 0
A12: 7 | B12: Фанера 15мм*1,525*1,525 | C12: лист | D12: 620 | G12: 0
A13: 8 | B13: Фанера 18мм*1,525*1,525 | C13: лист | D13: 750 | G13: 0
A14: 9 | B14: Фанера 21мм*1,525*1,525 | C14: лист | D14: 855 | G14: 0
A15: ФАНЕРА березовая марки ФК Ш2 высокосортная ГОСТ 3916.1-96 | F15: -
A16: 10 | B16: Фанера 4мм*1,525*1,525 (2/2) | C16: лист | D16: 260 | G16: =D16*F16 -> 0
A17: 11 | B17: Фанера 4мм*1,525*1,525 (2/3) | C17: лист | D17: 250 | G17: 0
A18: 12 | B18: Фанера 6мм*1,525*1,525 (2/2) | C18: лист | D18: 375 | G18: 0
A19: 13 | B19: Фанера 6мм*1,525*1,525 (2/3) | C19: лист | D19: 365 | G19: 0
A20: 14 | B20: Фанера 8мм*1,525*1,525 (2/2) | C20: лист | D20: 475 | G20: 0
A21: 15 | B21: Фанера 8мм*1,525*1,525 (2/3) | C21: лист | D21: 465 | G21: 0
A22: 16 | B22: Фанера 10мм*1,525*1,525 (2/2) | C22: лист | D22: 565 | G22: 0
A23: 17 | B23: Фанера 10мм*1,525*1,525 (2/3) | C23: лист | D23: 550 | G23: 0
A24: 18 | B24: Фанера 12мм*1,525*1,525 (2/2) | C24: лист | D24: 675 | G24: 0
A25: 19 | B25: Фанера 12мм*1,525*1,525 (2/3) | C25: лист | D25: 655 | G25: 0
A26: 20 | B26: Фанера 15мм*1,525*1,525 (2/2) | C26: лист | D26: 835 | G26: 0
A27: 21 | B27: Фанера 15мм*1,525*1,525 (2/3) | C27: лист | D27: 815 | G27: 0
A28: 22 | B28: Фанера 18мм*1,525*1,525 (2/2) | C28: лист | D28: 1010 | G28: 0
A29: 23 | B29: Фанера 18мм*1,525*1,525 (2/3) | C29: лист | D29: 985 | G29: 0
A30: 24 | B30: Фанера 21мм*1,525*1,525 (2/2) | C30: лист | D30: 1155 | G30: 0
A31: 25 | B31: Фанера 21мм*1,525*1,525 (2/3) | C31: лист | D31: 1120 | G31: 0
A32: ФАНЕРА березовая марки ФСФ сорт 4/4 ГОСТ 3916.1-96 | F32: -
A33: 27 | B33: Фанера 6,5мм*2,440*1,220 | C33: лист | D33: 650 | G33: =D33*F33 -> 0
A34: 28 | B34: Фанера 9мм*2,440*1,220 | C34: лист | D34: 750 | G34: 0
A35: 29 | B35: Фанера 12мм*2,440*1,220 | C35: лист | D35: 830 | G35: 0
A36: 30 | B36: Фанера 15мм*2,440*1,220 | C36: лист | D36: 1100 | G36: 0
A37: 31 | B37: Фанера 18мм*2,440*1,220 | C37: лист | D37: 1290 | G37: 0
A38: 32 | B38: Фанера 21мм*2,440*1,220 | C38: лист | D38: 1490 | G38: 0
A39: ФАНЕРА ламинированная | F39: -
A40: 34 | B40: Фанера лам. 2440х1220х18мм Тополь Китай | C40: лист | D40: 1750 | G40: =D40*F40 -> 0
A41: 35 | B41: Фанера лам. 2440х1220х21мм Тополь Китай | C41: лист | D41: 2000 | G41: =D41*F41 -> 0
A42: 36 | B42: Фанера лам. 2400*1220*18 мм Береза сорт 1/1 | C42: лист | D42: 2200 | G42: 0
A43: 37 | B43: Фанера лам. 2400*1220*18 мм Береза сорт 1/2 | C43: лист | D43: 2000 | G43: 0
A44: 38 | B44: Фанера лам. 2400*1220*21 мм Береза сорт 1/1 | C44: лист | D44: 2400 | G44: 0
F45: Общая сумма | G45: =SUM(G6:G44) -> 0

Sheet ЦСП ГСП
E1: на главную страницу
A2: ЦСП (Цементно/Гипсо-Стружечные Плиты)
A4: № | B4: Наименование | C4: Ед. изм. | D4: Цена за лист, руб | E4: Кол-во заказа | F4: Сумма, руб
A5: ЦСП (Цементно-стружечные плиты) | E5: -
A6: 1 | B6: ЦСП 8мм*3,200х1,250 | C6: лист | D6: 655 | F6: =D6*E6 -> 0
A7: 2 | B7: ЦСП 10мм*3,200х1,250 | C7: лист | D7: 775 | F7: 0
A8: 3 | B8: ЦСП 12мм*3,200х1,250 | C8: лист | D8: 880 | F8: 0
A9: 4 | B9: ЦСП 16мм*3,200х1,250 | C9: лист | D9: 1100 | F9: 0
A10: 5 | B10: ЦСП 20мм*3,200х1,250 | C10: лист | D10: 1350 | F10: 0
A11: 6 | B11: ЦСП 24мм*3,200х1,250 | C11: лист | D11: 1570 | F11: 0
A12: ГСП (Гипсо-стружечные плиты) | E12: -
A13: 7 | B13: ГСП 8 мм *3.000х1.250 ПК | C13: лист | D13: 400 | F13: =D13*E13 -> 0
A14: 8 | B14: ГСП 10 мм *2.500х1.250 ПК/ФК | C14: лист | D14: 415 | F14: =D14*E14 -> 0
A15: 9 | B15: ГСП 10 мм *3000х1.250 ПК/ФК | C15: лист | D15: 475 | F15: 0
A16: 10 | B16: ГСП 12 мм *2.500х1.250 ПК/ФК | C16: лист | D16: 485 | F16: 0
A17: 11 | B17: ГСП 12 мм *3.000х1.250 ПК/ФК | C17: лист | D17: 555 | F17: 0
A18: 12 | B18: ГСПВ 8 мм *3.000х1.250 ПК | C18: лист | D18: 450 | F18: 0
A19: 13 | B19: ГСПВ 10 мм *2.500х1.250 ПК/ФК | C19: лист | D19: 455 | F19: 0
A20: 14 | B20: ГСПВ 10 мм *3.000х1.250 ПК/ФК | C20: лист | D20: 525 | F20: 0
A21: 15 | B21: ГСПВ 12мм*2.500х1.250 ПК/ФК | C21: лист | D21: 520 | F21: 0
A22: 16 | B22: ГСПВ 12 мм *3.000х1.250 ПК/ФК | C22: лист | D22: 600 | F22: 0
A23: 17 | B23: ГСПВ 23 мм *1.300х550 элемент стяжки пола | C23: лист | D23: 265 | F23: 0
E24: Общая сумма | F24: =SUM(F6:F23) -> 0

Sheet ГКЛ ПГП
A1: ГКЛ, ПГП | D1: на главную страницу
A3: № | B3: Наименование товаров | C3: Ед. изм. | D3: Цена за лист, руб | F3: Кол-во заказа | G3: Сумма, руб
A5: Гипсокартон Волма | F5: -
A6: 1 | B6: ГКЛ 2500*1200*9,5 стандарт | C6: лист | D6: 175 | G6: =D6*F6 -> 0
A7: 2 | B7: ГКЛ 2500*1200*12,5 стандарт | C7: лист | D7: 195 | G7: 0
A8: 3 | B8: ГКЛ 2500*1200*9,5 влаг | C8: лист | D8: 235 | G8: 0
A9: 4 | B9: ГКЛ 2500*1200*12,5 влаг | C9: лист | D9: 295 | G9: 0
A10: Пазогребневые плиты Волма | F10: -
A11: 5 | B11: ПГП 80мм пустотелая | C11: лист | D11: 185 | G11: 0
A12: 6 | B12: ПГП 80мм полнотелая | C12: лист | D12: 200 | G12: 0
A13: 7 | B13: ПГП 100мм полнотелая | C13: лист | D13: 255 | G13: 0
A14: 8 | B14: ПГП 80мм пустотелая влагостойкая | C14: лист | D14: 220 | G14: 0
A15: 9 | B15: ПГП 80мм полнотелая влагостойкая | C15: лист | D15: 245 | G15: =D15*F15 -> 0
A16: 10 | B16: ПГП 100мм полнотелая влагостойкая | C16: лист | D16: 290 | G16: 0
F17: Общая сумма | G17: =SUM(G6:G16) -> 0

Sheet ДВП ДСП
A1: ДВП, ДСП | C1: на главную страницу
B3: НАИМЕНОВАНИЕ | C3: Площадь листа, м2 | D3: Цена за лист, руб | E3: Кол-во заказа | F3: Сумма, руб
E4: -
A5: 1 | B5: ДВП 2440*1220*3,2 ТС-20 1 сорт | C5: 2.98 | D5: 145 | F5: =E5*D5 -> 0
A6: 2 | B6: ДВП 2745*1220*3,2 ТС-20 1 сорт | C6: 3.35 | D6: 185 | F6: =E6*D6 -> 0
A7: 3 | B7: ДВП 2745*1700*3,2 НТ 1 сорт | C7: 4.67 | D7: 225 | F7: 0
A8: 4 | B8: ДСП 2500*1850*16мм Шарья | C8: 4.625 | D8: 595 | F8: 0
E9: Общая сумма | F9: =SUM(F4:F8) -> 0

Sheet Утеп-ли
A2: УТЕПЛИТЕЛИ, ПЕНОПЛАСТ, ФОЛЬГА | G2: на главную страницу
A4: № | B4: Наименование | C4: Толщина мм | D4: Размер, мм (ДхШхТ) | E4: Плотность кг/мЗ | F4: Цена за упаковку | G4: Примечание | H4: Количество заказа | I4: Сумма, руб
A6: Базальтовый утеплитель ТехноНИКОЛЬ | H6: -
A7: 1 | B7: РОКЛАЙТ | C7: 50 | D7: 1200x600x50 | E7: 35 | F7: 350 | G7: в пачке 8 плит, 0,288м3, 5,76м2 | I7: =F7*H7 -> 0
C8: 100 | D8: 1200x600x100 | E8: 35 | F8: 350 | G8: в пачке 6 плит, 0,288м3, 2,88м2 | I8: =F7*H8 -> 0
A9: 2 | B9: ТЕХНОБЛОК | C9: 50 | D9: 1200x600x50 | E9: 45 | F9: 460 | G9: в пачке 8 плит, 0,288м3, 5,76м2 | I9: =F7*H9 -> 0
C10: 100 | D10: 1200x600x100 | E10: 45 | F10: 460 | G10: в пачке 4 плит, 0,2,88м3, 2,88м2 | I10: =F7*H10 -> 0
A11: Базальтовый утеплитель ROCKWOOL | H11: -
A12: 3 | B12: ЛАЙТ БАТТС СКАНДИК | C12: 50 | D12: 800х600х50 | E12: 30 | F12: 460 | G12: в пачке 6 плит, 0,288м3, 5,76м2 | I12: =F12*H12 -> 0
A13: 4 | B13: ЛАЙТ БАТТС СКАНДИК | C13: 100 | D13: 800х600х50 | E13: 30 | F13: 460 | G13: в пачке 12 плит, 0,288м3, 2,88м2 | I13: =F13*H13 -> 0
A14: 5 | B14: ЛАЙТ БАТТС | C14: 50 | D14: 1000х600х50 | E14: 30 | F14: 685 | G14: в пачке 6 плит, 0,288м3, 5,76м2 | I14: 0
A15: 6 | B15: ЛАЙТ БАТТС | C15: 100 | D15: 1000х600х100 | E15: 30 | F15: 685 | G15: в пачке 12 плит, 0,288м3, 2,88м2 | I15: 0
A16: Минераловатная теплоизоляция KNAUF | H16: -
A17: 7 | B17: ТеплоКНАУФ Дом Термо Плита 040 | C17: 50 | D17: 1230х610х50 | E17: 20 | F17: 680 | G17: в пачке 16 плит, 0,6м3, 12м2 | I17: =F17*H17 -> 0
A18: 8 | B18: ТеплоКНАУФ Дом Термо Плита 040 | C18: 100 | D18: 1230х610х100 | E18: 20 | F18: 680 | G18: в пачке 8 плит, 0,6м3, 6м2 | I18: =F18*H18 -> 0
A19: Минераловатная теплоизоляция ВОЛМА Лайт М11 (аналог Izover K11) | H19: -
A20: 9 | B20: ВОЛМА | C20: 50 | D20: 1200*9000*50 | E20: 11 | F20: 900 | G20: в пачке 2 плиты, 1,08 м3, 21,6м2 | I20: =F20*H20 -> 0
A21: 10 | B21: ВОЛМА | C21: 100 | D21: 1200*9000*100 | E21: 11 | F21: 900 | G21: в пачке 1 плита, 1,08 м3, 10,8м2 | I21: =F21*H21 -> 0
A22: Пенопласт | H22: -
A23: 11 | B23: Пенопласт ПСБ-С-15 | C23: 5см | D23: 1000х1000*50 | F23: 75 | G23: хорошая звукоизоляция; | I23: =F23*H23 -> 0
A24: 12 | B24: Пенопласт ПСБ-С-15 | C24: 10см | D24: 1000х1000*100 | F24: 150 | G24: низкий показатель термопроводности, который варьирует от 0,037 до 0,041 Вт/мК; | I24: =F24*H24 -> 0
A25: 13 | B25: Пенопласт ПСБ-С-25 | C25: 5см | D25: 1000х1000*50 | F25: 150 | G25: плотность (отношение веса к объему) находится в пределах от 15 до 35 кг/м3; | I25: 0
A26: 14 | B26: Пенопласт ПСБ-С-25 | C26: 10см | D26: 1000х1000*100 | F26: 300 | G26: высокий уровень паропроницаемости материала, что помогает удалению избытка влаги; | I26: 0
A27: IZOFLEX (Изофлекс) отражающая изоляция | H27: -
A28: 15 | B28: Изофлекс 30м2 | C28: 2мм | D28: 25*1,2*2мм | F28: 750 | G28: Отражение тепловой энергии – 92 %. Эксплуатационный диапазон температуры – 145 °C (от -55 до + 90). Водопоглощение Изофлекс (за сутки) – не более 2 %. Звукопоглощение – в пределах 0,05-0,15. Плотность IZOFLEX – от 32 до 60 кг/м3. Паропроницаемость – нулевая. | I28: =F28*H28 -> 0
A29: 16 | B29: Изофлекс 30м2 | C29: 3мм | D29: 25*1,2*3мм | F29: 800 | I29: =F29*H29 -> 0
A30: 17 | B30: Изофлекс 30м2 | C30: 4мм | D30: 25*1,2*4мм | F30: 985 | I30: 0
A31: 18 | B31: Изофлекс 30м2 | C31: 5мм | D31: 25*1,2*5мм | F31: 1035 | I31: 0
A32: 19 | B32: Изофлекс 18м2 | C32: 8мм | D32: 25*1,2*8мм | F32: 900 | I32: 0
A33: 20 | B33: Изофлекс 18м2 | C33: 10мм | D33: 25*1,2*10мм | F33: 950 | I33: 0
A34: Фольга алюминиевая | H34: -
A35: 21 | B35: Фольга алюминиевая | C35: 50мкн | D35: 5м2 | F35: 270 | G35: Экологически чистая сверхпрочная полированная алюминиевая фольга применяется для бань, саун, изоляции труб, сантехнических систем, зданий и сооружений. | I35: =F35*H35 -> 0
A36: 22 | B36: Фольга алюминиевая | C36: 50мкн | D36: 10м2 | F36: 530 | I36: =F36*H36 -> 0
A37: 23 | B37: Фольга алюминиевая | C37: 50мкн | D37: 12м2 | F37: 560 | I37: 0
A38: 24 | B38: Фольга алюминиевая | C38: 50мкн | D38: 20м2 | F38: 1050 | I38: 0
H39: Общая сумма | I39: =SUM(I7:I38) -> 0

Sheet Пароизол
A2: ПАРОИЗОЛЯЦИОННЫЕ МАТЕРИАЛЫ | F2: на главную страницу
A4: № | B4: Наименование | D4: Размер, м2 | E4: Цена, руб. | F4: Примечание | G4: кол-во заказа | H4: Сумма
G5: -
A6: 1 | B6: АРДМАНол А (1,6*38,5) | D6: 60 | E6: 850 | F6: ветро-влагозащита | H6: =E6*G6 -> 0
A7: =A6+1 -> 2 | B7: АРДМАНол В (1,6*38,5) | D7: 60 | E7: 630 | F7: пароизоляция | H7: =E7*G7 -> 0
A8: 3 | B8: АРДМАНол В (1,6*38,5) эконом | D8: 60 | E8: 550 | F8: пароизоляция | H8: 0
A9: 4 | B9: АРДМАНол С (1,6*38,5) | D9: 60 | E9: 880 | F9: гидро-пароизоляция | H9: 0
A10: 5 | B10: АРДМАНол D (1,6*38,5) | D10: 60 | E10: 960 | F10: паро-гидроизоляция универ. | H10: 0
A11: =A10+1 -> 6 | B11: АРДМАНол FS 1,5м | D11: 60 | E11: 1075 | F11: отражающая гидро-пароизоляция с эффектом энергосбережения | H11: 0
G12: Общая сумма | H12: =SUM(H5:H11) -> 0

Sheet Крепеж
A1: Крепеж | G1: на главную страницу | J1: на главную страницу
A3: № | B3: Наименование | C3: Цена за шт, руб. | I3: Ед. изм. | J3: Кол-во заказа | K3: Сумма, руб
A6: Саморезы по дереву | J6: -
A7: 1 | B7: Саморез 3,5*19 по дереву | C7: 0.25 | I7: шт | K7: =C7*J7 -> 0
A8: 2 | B8: Саморез 3,5*25 по дереву | C8: 0.25 | I8: шт | K8: =C8*J8 -> 0
A9: 3 | B9: Саморез 3,5*35 по дереву | C9: 0.35 | I9: шт | K9: 0
A10: 4 | B10: Саморез 3,5*41 по дереву | C10: 0.45 | I10: шт | K10: 0
A11: 5 | B11: Саморез 3,5*45 по дереву | C11: 0.45 | I11: шт | K11: 0
A12: 6 | B12: Саморез 3,5*51 по дереву | C12: 0.5 | I12: шт | K12: 0
A13: 7 | B13: Саморез 3,5*55 по дереву | C13: 0.5 | I13: шт | K13: 0
A14: 8 | B14: Саморез 3,8*64 по дереву | C14: 0.6 | I14: шт | K14: 0
A15: 9 | B15: Саморез 4,2*70 по дереву | C15: 0.8 | I15: шт | K15: 0
A16: 10 | B16: Саморез 4,2*76 по дереву | C16: 0.9 | I16: шт | K16: 0
A17: 11 | B17: Саморез 4,2*90 по дереву | C17: 1.3 | I17: шт | K17: 0
A18: 12 | B18: Саморез 4,8*100 по дереву | C18: 1.6 | I18: шт | K18: 0
A19: 13 | B19: Саморез 5*102 по дереву | C19: 1.5 | I19: шт | K19: 0
A20: 14 | B20: Саморез 5*127 по дереву | C20: 1.9 | I20: шт | K20: 0
A21: 15 | B21: Саморез 5*152 по дереву | C21: 2.45 | I21: шт | K21: 0
A22: Гвозди строительные | J22: -
A23: 16 | B23: Гвозди 1,2*16 | C23: 75 | I23: кг | K23: =C23*J23 -> 0
A24: 17 | B24: Гвозди 1,2*20 | C24: 90 | I24: кг | K24: =C24*J24 -> 0
A25: 18 | B25: Гвозди 1,6*25 | C25: 70 | I25: кг | K25: 0
A26: 19 | B26: Гвозди 1,8*32 | C26: 65 | I26: кг | K26: 0
A27: 20 | B27: Гвозди 2,0*40 | C27: 80 | I27: кг | K27: 0
A28: 21 | B28: Гвозди 2,5*50 | C28: 60 | I28: кг | K28: 0
A29: 22 | B29: Гвозди 2,5*60 | C29: 60 | I29: кг | K29: 0
A30: 23 | B30: Гвозди 3,0*70 | C30: 55 | I30: кг | K30: 0
A31: 24 | B31: Гвозди 3,5*90 | C31: 60 | I31: кг | K31: 0
A32: 25 | B32: Гвозди 4,0*100 | C32: 50 | I32: кг | K32: 0
A33: 26 | B33: Гвозди 4,0*120 | C33: 50 | I33: кг | K33: 0
A34: 27 | B34: Гвозди 5,0*150 | C34: 55 | I34: кг | K34: 0
A35: 28 | B35: Гвозди 6,0*200 | C35: 60 | I35: кг | K35: 0
A36: Кляймеры (скоба прикрепительная для вагонки) | J36: -
A37: 29 | B37: Кляймеры 2мм (100шт) | C37: 70 | I37: уп. | K37: =C37*J37 -> 0
A38: 30 | B38: Кляймеры 3мм (100шт) | C38: 70 | I38: уп. | K38: =C38*J38 -> 0
A39: 31 | B39: Кляймеры 4мм (80шт) | C39: 60 | I39: уп. | K39: 0
A40: 32 | B40: Кляймеры 5мм (80шт) | C40: 60 | I40: уп. | K40: 0
A41: 33 | B41: Кляймеры 6мм (80шт) | C41: 60 | I41: уп. | K41: 0
J42: Общая сумма | K42: =SUM(K7:K41) -> 0

Sheet Лаки
G1: на главную страницу
A2: ЛАКИ, КРАСКИ ДЛЯ ДЕРЕВА "ZELEST"
A3: № | B3: Наименование | C3: Ед. изм. | D3: Характеристика | E3: Цена, руб | F3: Кол-во заказа | G3: Сумма, руб
A4: ДЕКОРАТИВНЫЕ ПОКРЫТИЯ | F4: -
A5: Лак ТОНИРУЮЩИЙ АКРИЛОВЫЙ (10 оттенков) | F5: -
A6: 1 | B6: Зелест Вереста 0,9 кг | C6: ведро | D6: Превосходный лессирующий лак на акриловой основе для декоративной отделки деревянных поверхностей фасадов и интерьеров под ценные породы древесины. | E6: 250 | G6: =E6*F6 -> 0
A7: 2 | B7: Зелест Вереста 2,5 кг | C7: ведро | E7: 540 | G7: =E7*F7 -> 0
A8: 3 | B8: Зелест Вереста 9 кг | C8: ведро | E8: 2300 | G8: 0
A9: Краска ТЕКСТУРНАЯ АКРИЛОВАЯ (10 оттенков) | F9: -
A10: 4 | B10: Зелест Аваколор 0,9 кг | C10: ведро | D10: Уникальная акриловая краска для декоративной отделки и защиты древесины фасадов и интерьеров. Обладает прекрасной адгезией,проникает в древесину,сохраняя рельефный рисунок. | E10: 465 | G10: =E10*F10 -> 0
A11: 5 | B11: Зелест Аваколор 2,5 кг | C11: ведро | E11: 1275 | G11: =E11*F11 -> 0
A12: 6 | B12: Зелест Аваколор 9 кг | C12: ведро | E12: 4500 | G12: 0
F13: Общая сумма | G13: =SUM(G6:G12) -> 0
B15: Цветовая гамма лаков:
B17: бесцветный
B18: сосна
B19: дуб
B20: орегон
B21: орех
B22: каштан
B23: лиственница
B24: махагон
B25: тик
B26: полисандр

Sheet Огнебио
A2: ЗАЩИТА ДЛЯ ДЕРЕВА "ZELEST" | C2: на главную страницу
A4: № | B4: Наименование | C4: Ед. изм. | D4: Характеристика | E4: Цена, руб | F4: Кол-во заказа | G4: Сумма, руб
A5: Огне-биозащитные составы для комплексной защиты древесины | F5: -
A6: Огне- биозащита ПРОФЕССИОНАЛЬНАЯ - I и II гр. | F6: -
A7: 1 | B7: Зелест Экопирол Форте 12 кг | C7: канистра | D7: Комбинированное огне- биозащитное средство с усиленным огнезащитным действием. Обеспечивает 2 группы огнезащиты. Тонирует древесину для контроля качества огнезащиты. | E7: 750 | G7: =E7*F7 -> 0
A8: 2 | B8: Зелест Экопирол Форте 25 кг | C8: канистра | E8: 1400 | G8: =E8*F8 -> 0
A9: 3 | B9: Зелест Экопирол Форте 75 кг | C9: бочка | E9: 5800 | G9: 0
A10: Огне- биозащита СТАНДАРТ II гр. | F10: -
A11: 4 | B11: Зелест Экопирол 10 кг | C11: канистра | D11: Комплексная огне- биозащита древесины. Не изменяет цвет древесины, колеруется водными морилками. | E11: 550 | G11: =E11*F11 -> 0
A12: 5 | B12: Зелест Экопирол 20 кг | C12: канистра | E12: 1100 | G12: =E12*F12 -> 0
A13: 6 | B13: Зелест Экопирол 65 кг | C13: бочка | E13: 4000 | G13: 0
A14: Огне- биозащита СТАНДАРТ II гр. с тонированием | F14: -
A15: 7 | B15: Зелест Экопирол (тонир.) 10 кг | C15: канистра | D15: Комплексная огне- биозащита древесины. Тонирует древесину в вишневый оттенок для контроля качества огнезащитной обработки. | E15: 550 | G15: =E15*F15 -> 0
A16: 8 | B16: Зелест Экопирол (тонир.) 20 кг | C16: канистра | E16: 1100 | G16: =E16*F16 -> 0
A17: 9 | B17: Зелест Экопирол (тонир.) 65 кг | C17: бочка | E17: 4000 | G17: 0
A18: Антисептики | F18: -
A19: Антисептик НЕВЫМЫВАЕМЫЙ | F19: -
A20: 10 | B20: Зелест Хортос 5 кг | C20: канистра | D20: Профессиональная и долговременная защита древесины от интенсивного гниения, в условиях особо интенсивного увлажнения и биоразрушения, непрерывном контакте с грунтом и водой. Придает древесине зеленоватый оттенок | E20: 550 | G20: =E20*F20 -> 0
A21: 11 | B21: Зелест Хортос 10 кг | C21: канистра | E21: 1100 | G21: =E21*F21 -> 0
A22: 12 | B22: Зелест Хортос 20 кг | C22: канистра | E22: 2200 | G22: 0
A23: Антисептик ТРУДНОВЫМЫВАЕМЫЙ | F23: -
A24: 13 | B24: Зелест Фаберол 5 кг | C24: канистра | D24: Усиленная защита ответственных элементов деревянных конструкций от гниения и поражения насекомыми в труднодоступных влажных местах, в условиях воздействия атмосферных осадков, почвенной влаги. Придает древесине зеленоватый оттенок. | E24: 355 | G24: =E24*F24 -> 0
A25: 14 | B25: Зелест Фаберол 10 кг | C25: канистра | E25: 650 | G25: =E25*F25 -> 0
A26: 15 | B26: Зелест Фаберол 20 кг | C26: канистра | E26: 1300 | G26: 0
A27: 16 | B27: Зелест Фаберол 65 кг | C27: бочка | E27: 4500 | G27: 0
A28: Антисептик для помещений | F28: -
A29: 17 | B29: Зелест Форис 5 кг | C29: канистра | D29: Надежная и экологичная защита древесины от синевы и плесени внутри помещений и под навесом в условиях конденсационного и гигроскопического увлажения. Не изменяет цвет древесины. | E29: 300 | G29: =E29*F29 -> 0
A30: 18 | B30: Зелест Форис 10 кг | C30: канистра | E30: 570 | G30: =E30*F30 -> 0
A31: 19 | B31: Зелест Форис 65 кг | C31: бочка | E31: 3400 | G31: 0
A32: Антисептик на период строительства | F32: -
A33: 20 | B33: Зелест Стагон 5 кг | C33: канистра | D33: Надежная и экологичная защита древесины от синевы, плесени, поражения насекомыми на весь период с начала возведения до финишной отделки, включая изготовление,транспортировку и хранение. | E33: 1300 | G33: =E33*F33 -> 0
A34: 21 | B34: Зелест Стагон 10 кг | C34: канистра | E34: 2600 | G34: =E34*F34 -> 0
A35: 22 | B35: Зелест Стагон 65 кг | C35: канистра | E35: 5800 | G35: 0
A36: Средства для восстановления древесины | F36: -
A37: 23 | B37: Зелест Бликта 6 кг (отбеливатель с запахом хвои) | C37: канистра | D37: Высокоэффективный отбеливатель с усиленным проникающим действием для быстрого восстановления естественного природного цвета потемневшей древесины. | E37: 540 | G37: =E37*F37 -> 0
A38: 24 | B38: Зелест Бликта 12 кг (отбеливатель с запахом хвои) | C38: канистра | E38: 960 | G38: =E38*F38 -> 0
F39: Общая сумма | G39: =SUM(G7:G38) -> 0

Sheet Грунт для OSB
G1: на главную страницу
A2: ГРУНТ-краска Holzer для OSB-3
A4: № | B4: Наименование | C4: Ед. изм. | D4: Характеристика | E4: Цена, руб | F4: Кол-во заказа | G4: Сумма, руб
A5: Грунты для OSB-3 для наружных и внутренних работ | F5: -
A6: 1 | B6: Хольцер ОSB Грунт (Новинка!!!) 4кг | C6: ведро | D6: Грунт-краска предназначена для защиты, предварит. обработки перед нанесением декоративных покрытий, либо создания финишного покрытия по OSB-3. Расход 0,35-0,4гр/м2 | E6: 735 | G6: =E6*F6 -> 0
A7: 2 | B7: Хольцер ОSB Грунт (Новинка!!!) 15кг | C7: ведро | E7: 2550 | G7: =E7*F7 -> 0
A8: 3 | B8: Хольцер ОSB Грунт (Новинка!!!) 25кг | E8: 4035 | G8: 0
A9: 4 | B9: Хольцер Кварцгрунт Эластиш 16кг | C9: ведро | D9: Специальный грунт под декоративные штукатурки, для отделки каркасных домов, колеруемый. Расход 0,35-0,4гр/м2 | E9: 2000 | G9: =E9*F9 -> 0
A10: 5 | B10: Хольцер Кварцгрунт Эластиш 30кг | C10: ведро | E10: 3700 | G10: =E10*F10 -> 0
F11: Общая сумма | G11: =SUM(G5:G10) -> 0

Sheet Грунты
G1: на главную страницу
A2: ГРУНТОВКИ глубокого проникновения
A4: № | B4: Наименование | C4: Ед. изм. | D4: Характеристика | E4: Цена, руб | F4: Кол-во заказа | G4: Сумма, руб
A5: Грунтовки глубокого проникновения "МОНОЛИТ" | F5: -
A6: 1 | B6: Грунтовка универсальная Стандарт 5кг | C6: канистра | D6: Универсальная | E6: 170 | G6: =E6*F6 -> 0
A7: 2 | B7: Грунтовка универсальная Стандарт 10кг | C7: канистра | E7: 310 | G7: =E7*F7 -> 0
A8: 3 | B8: Грунтовка глубокого проникновения 5кг | C8: канистра | D8: Укрепляющая. Для сильно впитывающих поверхностей | E8: 300 | G8: =E8*F8 -> 0
A9: 4 | B9: Грунтовка глубокого проникновения 10кг | C9: канистра | E9: 550 | G9: =E9*F9 -> 0
A10: 5 | B10: Грунтовка для ГКЛ 5кг | C10: канистра | D10: Для гипсокартона и мелкопористых поверхностей | E10: 270 | G10: 0
A11: 6 | B11: Грунтовка для ГКЛ 10кг | C11: канистра | E11: 505 | G11: 0
A12: 7 | B12: Грунтовка проникающая 5кг | C12: канистра | D12: Проникающая, с усиленной защитой от плесени | E12: 250 | G12: 0
A13: 8 | B13: Грунтовка проникающая 10кг | C13: канистра | E13: 460 | G13: 0
A14: 9 | B14: Грунт адгезионный Бетонконтакт 2,5кг | C14: канистра | D14: Адгезионный с кварцевым наполнителем Бетонконтакт | E14: 340 | G14: 0
A15: 10 | B15: Грунт адгезионный Бетонконтакт 6кг | C15: канистра | E15: 680 | G15: 0
A16: 11 | B16: Грунт адгезионный Бетонконтакт 20кг | C16: канистра | E16: 2050 | G16: 0
F17: Общая сумма | G17: =SUM(G5:G16) -> 0

Sheet Напл.мат
A1: НАПЛАВЛЯЕМЫЕ МАТЕРИАЛЫ | G1: на главную страницу | I1: на главную страницу
A3: № | B3: Наименование | C3: Цена за рулон, руб | I3: Кол-во заказа | J3: Сумма, руб
I5: -
A6: 1 | B6: Рубероид РПП-300 (15м2) без посыпки | C6: 330 | J6: =C6*I6 -> 0
A7: 2 | B7: Рубероид РКП-350 (15м2) мелкая посыпка | C7: 330 | J7: =C7*I7 -> 0
A8: 3 | B8: Рубероид РКК-350 (10м) с посыпкой | C8: 350 | J8: =C8*I8 -> 0
A9: 4 | B9: Мастика гидроизоляционная (20л) ведро | C9: 1150 | J9: =C9*I9 -> 0
A10: 5 | B10: Праймер битумный готовый (20л) ведро | C10: 1200 | J10: =C10*I10 -> 0
I11: Общая сумма | J11: =SUM(J5:J10) -> 0

Sheet Цемент
A1: ЦЕМЕНТ | G1: на главную страницу | J1: на главную страницу
A3: № | B3: Наименование | C3: Цена за лист, руб | I3: Ед. изм. | J3: Кол-во заказа | K3: Сумма, руб
A6: Шифер | J6: -
A7: 1 | B7: Цемент М-400 50кг | C7: 330 | I7: мешок | K7: =C7*J7 -> 0
J8: Общая сумма | K8: =SUM(K7:K7) -> 0

Sheet Черенки
A1: ЧЕРЕНКИ | G1: на главную страницу | J1: на главную страницу
A3: № | B3: Наименование | C3: Ед. изм. | I3: Цена за шт | J3: Кол-во заказа | K3: Сумма, руб
J5: -
A6: 1 | B6: Черенок для лопаты D-40 1 сорт | C6: шт. | I6: 25 | K6: =I6*J6 -> 0
A7: 2 | B7: Черенок для лопаты D-40 в/с | C7: шт. | I7: 35 | K7: =I7*J7 -> 0
A8: 3 | B8: Черенок для лопаты не шлиф D-40 в/с | C8: шт. | I8: 33 | K8: 0
A9: 4 | B9: Черенок для тяпки D-32 в/с | C9: шт. | I9: 30 | K9: =I9*J9 -> 0
A10: 5 | B10: Черенок для швабры D-25 1 сорт | C10: шт. | I10: 15 | K10: 0
A11: 6 | B11: Черенок для швабры D-25 в/с | C11: шт. | I11: 25 | K11: 0
J12: Общая сумма | K12: =SUM(K5:K11) -> 0

Sheet Перчатки
A1: Перчатки, мешки для мусора | E1: на главную страницу | H1: на главную страницу
A3: № | B3: Наименование | C3: Ед. изм. | G3: Цена за пару | H3: Кол-во заказа | I3: Сумма, руб
A6: Перчатки, руковицы | H6: -
A7: 1 | B7: Перчатки нейлон с рельеф латекс арт 478 | C7: пара | D7: =#REF!*#REF! ->  | G7: 40 | I7: =G7*H7 -> 0
A8: =A7+1 -> 2 | B8: Перчатки нитриловые краги син 514 | C8: пара | D8: =#REF!*#REF! ->  | G8: 80 | I8: =G8*H8 -> 0
A9: =A8+1 -> 3 | B9: Перчатки ХБ 1-ный облив ПВХ 13кл 699 | C9: пара | D9: =#REF!*#REF! ->  | G9: 17 | I9: 0
A10: =A9+1 -> 4 | B10: Перчатки ХБ 2-ный облив ПВХ 13кл 645 | C10: пара | D10: =#REF!*#REF! ->  | G10: 20 | I10: 0
A11: 5 | B11: Перчатки ХБ масло-бензостойкие 421 | C11: пара | D11: =#REF!*#REF! ->  | G11: 75 | I11: 0
A12: 6 | B12: Перчатки ХБ с ПВХ 10кл 3н 572 | C12: пара | D12: =#REF!*#REF! ->  | G12: 8 | I12: 0
A13: 7 | B13: Перчатки ХБ с ПВХ 10кл 4н 376 | C13: пара | D13: =#REF!*#REF! ->  | G13: 10 | I13: 0
A14: 8 | B14: Перчатки ХБ с ПВХ 10кл 5н бел 569 | C14: пара | D14: =#REF!*#REF! ->  | G14: 12 | I14: 0
A15: 9 | B15: Перчатки ХБ с ПВХ 7,5кл 6н 400 | C15: пара | D15: =#REF!*#REF! ->  | G15: 13 | I15: 0
A16: 10 | B16: Перчатки ХБ с рельеф латекс наладон сер 420 | C16: пара | D16: =#REF!*#REF! ->  | G16: 45 | I16: 0
A17: 11 | B17: Рукавицы брезентовые 420гр 804 | C17: пара | D17: =#REF!*#REF! ->  | G17: 37 | I17: 0
A18: 12 | B18: Рукавицы хб с брез наладонником 708 | C18: пара | D18: =#REF!*#REF! ->  | G18: 28 | I18: 0
A19: Мешки полипропиленовые (для мусора) | H19: -
A20: 13 | B20: Мешок белый п/п 550*1050мм 60гр | C20: шт | G20: 14 | I20: =G20*H20 -> 0
A21: 14 | B21: Мешок белый п/п 550*1050мм 80гр | C21: шт | G21: 16 | I21: =G21*H21 -> 0
A22: 15 | B22: Мешок зеленый п/п 550*950мм | C22: шт | G22: 10 | I22: 0
H23: Общая сумма | I23: =SUM(I7:I22) -> 0
